[Event "1000GM Winter IM Norm-2 2024"]
[Site "Sunnyvale/"]
[Date "2024.01.04"]
[Round "4.5"]
[White "Sivakumar, Shaaketh"]
[Black "Dominguez Aguilar, Guillermo"]
[Result "1-0"]
[ECO "B31"]
[WhiteElo "2364"]
[BlackElo "2319"]
[Annotator "RC"]
[PlyCount "61"]
[EventDate "2023.12.14"]
[EventType "schev"]
[EventCountry "USA"]
[SourceTitle "playchess.com"]
[Source "ChessBase"]
[SourceQuality "1"]
[TimeControl "5400+30"]

1. e4 {[%emt 0:00:01]} c5 {[%emt 0:01:54]} 2. Nf3 {[%emt 0:00:10]} Nc6 {[%emt 0:00:10]} 3. Bb5 {[%emt 0:00:24]} g6 {[%emt 0:00:24]} 4. O-O {[%emt 0:00:31]} Bg7 {[%emt 0:00:06]} 5. c3 {[%emt 0:00:22]} Nf6 {[%emt 0:02:37]} 6. Re1 {[%emt 0:01:14]} O-O {[%emt 0:01:02]} 7. d4 {[%emt 0:05:04]} cxd4 {[%emt 0:00:19]} 8. cxd4 {[%emt 0:00:18]} d5 {[%emt 0:05:33]} 9. e5 {[%emt 0:03:26]} Ne4 {[%emt 0:00:38]} 10. Nc3 {[%emt 0:03:36]} Nxc3 {[%emt 0:00:33]} 11. bxc3 {[%emt 0:00:02]} Na5 {[%emt 0:05:14]} 12. Bd3 {[%emt 0:13:14]} Bg4 {[%emt 0:02:26]} 13. Bf4 {[%emt 0:10:53]} Rc8 {[%emt 0:01:40]} 14. Rc1 {[%emt 0:00:43]} f6 {[%emt 0:01:18]} 15. Be2 {[%emt 0:05:21]} Nc4 {[%emt 0:17:52]} 16. exf6 {[%emt 0:01:54]} exf6 {[%emt 0:01:28]} 17. h3 {[%emt 0:06:40]} Bxf3 {[%emt 0:05:34]} 18. Bxf3 {[%emt 0:00:06]} Qd7 {[%emt 0:00:42]} 19. Qb3 {[%emt 0:07:08]} b6 {[%emt 0:20:06]} 20. a4 {[%emt 0:05:15]} a6 {[%emt 0:00:29]} 21. Re7 {[%emt 0:01:52]} Qxe7 {[%emt 0:08:51]} 22. Bxd5+ {[%emt 0:00:05]} Kh8 {[%emt 0:00:10]} 23. Bxc4 {[%emt 0:00:05]} Qe4 {[%emt 0:00:25]} 24. Bd2 {[%emt 0:01:07]} Qb7 {[%emt 0:04:33]} 25. Be6 {[%emt 0:00:25]} Rcd8 {[%emt 0:01:08]} 26. d5 {[%emt 0:00:18]} f5 {[%emt 0:00:45]} 27. c4 {[%emt 0:02:52]} Qc7 {[%emt 0:00:04]} 28. a5 {[%emt 0:01:34]} Rb8 {[%emt 0:00:00]} 29. axb6 {[%emt 0:00:31]} Rxb6 {[%emt 0:00:05]} 30. Ba5 {[%emt 0:00:51]} Qf4 {[%emt 0:00:01]} 31. Qe3 {[%emt 0:00:40]} 1-0

[Event "1000GM Winter IM Norm-2 2024"]
[Site "Sunnyvale/"]
[Date "2024.01.04"]
[Round "4.6"]
[White "Yao, Hanchi"]
[Black "Ramirez, Carlos"]
[Result "0-1"]
[ECO "D48"]
[WhiteElo "1998"]
[BlackElo "2190"]
[Annotator "RC"]
[PlyCount "80"]
[EventDate "2023.12.14"]
[EventType "schev"]
[EventCountry "USA"]
[SourceTitle "playchess.com"]
[Source "ChessBase"]
[SourceQuality "1"]
[TimeControl "5400+30"]

1. d4 {[%emt 0:01:06]} d5 {[%emt 0:04:35]} 2. c4 {[%emt 0:00:05]} dxc4 {[%emt 0:00:07]} 3. Nf3 {[%emt 0:00:18]} Nf6 {[%emt 0:00:09]} 4. e3 {[%emt 0:00:13]} e6 {[%emt 0:00:08]} 5. Bxc4 {[%emt 0:00:07]} a6 {[%emt 0:00:13]} 6. Nc3 {[%emt 0:01:06]} b5 {[%emt 0:00:30]} 7. Bd3 {[%emt 0:00:57]} Bb7 {[%emt 0:00:14]} 8. O-O {[%emt 0:00:44]} c5 {[%emt 0:01:42]} 9. b3 {[%emt 0:05:03]} Nbd7 {[%emt 0:02:33]} 10. Bb2 {[%emt 0:01:20]} Be7 {[%emt 0:01:02]} 11. Rc1 {[%emt 0:04:56]} O-O {[%emt 0:00:49]} 12. a4 {[%emt 0:01:54]} cxd4 {[%emt 0:04:59]} 13. Nxd4 {[%emt 0:01:20]} Nc5 {[%emt 0:03:27]} 14. Bb1 {[%emt 0:01:40]} b4 {[%emt 0:00:47]} 15. Nce2 {[%emt 0:00:11]} Qb6 {[%emt 0:00:22]} 16. Nf4 {[%emt 0:10:25]} Rfd8 {[%emt 0:02:47]} 17. Nh5 {[%emt 0:04:17]} e5 {[%emt 0:15:37]} 18. Nxf6+ {[%emt 0:03:50]} Qxf6 {[%emt 0:01:14]} 19. Rxc5 {[%emt 0:04:33]} Bxc5 {[%emt 0:02:23]} 20. Qc2 {[%emt 0:00:13]} Qg6 {[%emt 0:07:46]} 21. Qxg6 {[%emt 0:02:04]} hxg6 {[%emt 0:00:03]} 22. Nf3 {[%emt 0:00:21]} Bd5 {[%emt 0:02:26]} 23. Bxe5 {[%emt 0:00:57]} Bxb3 {[%emt 0:00:16]} 24. a5 {[%emt 0:00:07]} Bd6 {[%emt 0:00:38]} 25. Be4 {[%emt 0:01:00]} Rab8 {[%emt 0:01:10]} 26. Nd4 {[%emt 0:00:58]} Bxe5 {[%emt 0:01:21]} 27. Nxb3 {[%emt 0:00:06]} Rbc8 {[%emt 0:01:22]} 28. f4 {[%emt 0:54:39]} Bf6 29. Kf2 Rc3 30. Rb1 Be7 31. Ke2 Rb8 32. Bd3 Bc5 33. Nd2 Ba7 34. Rb2 Rd8 35. Bxa6 Rxe3+ 36. Kf1 {[%emt 0:00:00]} Rd5 {[%emt 0:30:24]} 37. g3 {[%emt 0:00:00]} Rxa5 {[%emt 0:01:19]} 38. Bc4 {[%emt 0:00:00]} Ra1+ {[%emt 0:02:46]} 39. Kg2 {[%emt 0:05:30]} Rc1 {[%emt 0:00:15]} 40. Ra2 {[%emt 0:00:00]} Ra3 {[%emt 0:01:03]} 0-1

[Event "1000GM Winter IM Norm-2 2024"]
[Site "Sunnyvale/"]
[Date "2024.01.05"]
[Round "4.7"]
[White "Bhatta, Rohit"]
[Black "Arenas, David"]
[Result "0-1"]
[ECO "E11"]
[WhiteElo "1867"]
[BlackElo "2406"]
[Annotator "RC"]
[PlyCount "162"]
[EventDate "2023.12.14"]
[EventType "schev"]
[EventCountry "USA"]
[SourceTitle "playchess.com"]
[Source "ChessBase"]
[SourceQuality "1"]
[TimeControl "5400+30"]

1. d4 {[%emt 0:00:02]} Nf6 {[%emt 0:11:52]} 2. c4 {[%emt 0:00:08]} e6 {[%emt 0:00:04]} 3. g3 {[%emt 0:00:16]} Bb4+ {[%emt 0:00:52]} 4. Bd2 {[%emt 0:00:09]} Qe7 {[%emt 0:00:06]} 5. Nf3 {[%emt 0:00:13]} Nc6 {[%emt 0:00:09]} 6. Nc3 {[%emt 0:00:17]} Bxc3 {[%emt 0:01:09]} 7. Bxc3 {[%emt 0:00:08]} Ne4 {[%emt 0:00:11]} 8. Rc1 {[%emt 0:00:25]} a5 {[%emt 0:00:06]} 9. Bg2 {[%emt 0:02:14]} O-O {[%emt 0:00:11]} 10. O-O {[%emt 0:00:26]} Nxc3 {[%emt 0:00:05]} 11. Rxc3 {[%emt 0:00:09]} d6 {[%emt 0:00:09]} 12. d5 {[%emt 0:04:57]} Nb4 {[%emt 0:00:23]} 13. a3 {[%emt 0:06:06]} Na6 {[%emt 0:00:04]} 14. dxe6 {[%emt 0:01:46]} fxe6 {[%emt 0:00:16]} 15. Nd4 {[%emt 0:03:34]} e5 {[%emt 0:01:06]} 16. Nc2 {[%emt 0:06:18]} a4 {[%emt 0:03:44]} 17. Ne3 {[%emt 0:09:44]} Nc5 {[%emt 0:00:31]} 18. Nd5 {[%emt 0:09:57]} Qd8 {[%emt 0:01:11]} 19. Nb4 {[%emt 0:03:04]} Bf5 {[%emt 0:09:38]} 20. Qd2 {[%emt 0:23:01]} Kh8 {[%emt 0:02:21]} 21. Qe3 {[%emt 0:02:17]} Bg6 {[%emt 0:04:34]} 22. Rd1 {[%emt 0:05:26]} Qf6 {[%emt 0:03:05]} 23. Qf3 {[%emt 0:02:24]} c6 {[%emt 0:04:01]} 24. Qxf6 {[%emt 0:00:36]} Rxf6 {[%emt 0:00:01]} 25. Rf3 {[%emt 0:01:29]} Rd8 {[%emt 0:00:12]} 26. Rxf6 {[%emt 0:01:20]} gxf6 {[%emt 0:00:07]} 27. e3 {[%emt 0:02:12]} Kg7 {[%emt 0:01:09]} 28. Bf3 {[%emt 0:02:23]} Kf7 {[%emt 0:01:37]} 29. Kg2 {[%emt 0:01:54]} Ke6 {[%emt 0:00:10]} 30. h4 {[%emt 0:01:13]} h6 {[%emt 0:03:35]} 31. Kf1 {[%emt 0:00:38]} Bf5 {[%emt 0:00:35]} 32. Kg2 {[%emt 0:00:27]} Rg8 {[%emt 0:02:02]} 33. Kh2 {[%emt 0:01:15]} Kd7 {[%emt 0:03:35]} 34. Kg2 {[%emt 0:00:36]} Kc7 {[%emt 0:00:26]} 35. Kh2 {[%emt 0:00:39]} Ra8 {[%emt 0:06:11]} 36. Kg2 {[%emt 0:00:39]} Nd7 {[%emt 0:05:15]} 37. Be2 {[%emt 0:06:02]} Be6 {[%emt 0:01:40]} 38. Rc1 {[%emt 0:01:19]} Ra5 {[%emt 0:01:43]} 39. Nd3 {[%emt 0:00:48]} Bf5 {[%emt 0:00:03]} 40. Rc3 {[%emt 0:01:20]} Ra8 {[%emt 0:03:53]} 41. Bd1 {[%emt 0:00:37]} Rg8 {[%emt 0:01:59]} 42. Be2 {[%emt 0:01:16]} Kd8 {[%emt 0:01:52]} 43. Bd1 {[%emt 0:00:39]} Ke7 {[%emt 0:00:05]} 44. Nb4 {[%emt 0:00:35]} Nc5 {[%emt 0:00:11]} 45. Bf3 {[%emt 0:00:19]} Kd7 {[%emt 0:04:11]} 46. Rc1 {[%emt 0:00:22]} Kc7 {[%emt 0:00:30]} 47. Rc3 {[%emt 0:00:38]} Ra8 {[%emt 0:01:12]} 48. Be2 {[%emt 0:00:56]} Be6 {[%emt 0:01:56]} 49. Nd3 {[%emt 0:00:18]} Nxd3 {[%emt 0:01:14]} 50. Bxd3 {[%emt 0:00:08]} Kb6 {[%emt 0:00:08]} 51. Be2 {[%emt 0:00:42]} Kc5 {[%emt 0:00:27]} 52. Kf1 {[%emt 0:00:32]} f5 {[%emt 0:04:39]} 53. Kg2 {[%emt 0:00:11]} Ra6 {[%emt 0:01:41]} 54. Rc2 {[%emt 0:00:59]} Rb6 {[%emt 0:00:36]} 55. Kh2 {[%emt 0:00:43]} Rb3 {[%emt 0:00:27]} 56. Kg2 {[%emt 0:00:06]} Bg8 {[%emt 0:02:13]} 57. Kg1 {[%emt 0:00:55]} Bf7 {[%emt 0:00:18]} 58. Kg2 {[%emt 0:00:09]} Be6 {[%emt 0:00:04]} 59. Kh2 {[%emt 0:00:26]} f4 {[%emt 0:00:29]} 60. exf4 {[%emt 0:00:34]} exf4 {[%emt 0:00:02]} 61. Kg2 {[%emt 0:00:45]} fxg3 {[%emt 0:02:43]} 62. fxg3 {[%emt 0:00:08]} Re3 {[%emt 0:00:04]} 63. Kf2 {[%emt 0:00:25]} Re4 {[%emt 0:00:03]} 64. Kf3 {[%emt 0:01:10]} Rd4 {[%emt 0:00:01]} 65. Bf1 {[%emt 0:00:28]} Bf5 {[%emt 0:06:22]} 66. Rc3 {[%emt 0:00:24]} h5 {[%emt 0:02:25]} 67. Ke3 {[%emt 0:00:34]} Re4+ {[%emt 0:00:16]} 68. Kf3 {[%emt 0:00:13]} Re1 {[%emt 0:01:28]} 69. Bd3 {[%emt 0:01:13]} Bg4+ {[%emt 0:00:05]} 70. Kf2 {[%emt 0:00:29]} Rh1 {[%emt 0:01:22]} 71. Kg2 {[%emt 0:00:14]} Rd1 {[%emt 0:00:13]} 72. Kf2 {[%emt 0:00:49]} Rd2+ {[%emt 0:03:02]} 73. Ke3 {[%emt 0:00:09]} Rxb2 {[%emt 0:00:02]} 74. Bc2 {[%emt 0:00:23]} b5 {[%emt 0:00:29]} 75. cxb5+ {[%emt 0:00:08]} Kxb5 {[%emt 0:00:01]} 76. Kd4 {[%emt 0:00:54]} Ra2 {[%emt 0:01:06]} 77. Bd3+ {[%emt 0:00:49]} Kb6 {[%emt 0:00:03]} 78. Bc2 {[%emt 0:00:16]} Be6 {[%emt 0:01:30]} 79. Bxa4 {[%emt 0:00:17]} c5+ {[%emt 0:00:01]} 80. Kd3 {[%emt 0:01:04]} d5 {[%emt 0:01:16]} 81. Be8 {[%emt 0:00:23]} Bf5+ {[%emt 0:06:12]} 0-1

[Event "1000GM Winter IM Norm-2 2024"]
[Site "Sunnyvale/"]
[Date "2024.01.04"]
[Round "4.8"]
[White "Mede, Istvan"]
[Black "Stevens, Adam B"]
[Result "1-0"]
[ECO "C13"]
[WhiteElo "2187"]
[BlackElo "1878"]
[Annotator "RC"]
[PlyCount "89"]
[EventDate "2023.12.14"]
[EventType "schev"]
[EventCountry "USA"]
[SourceTitle "playchess.com"]
[Source "ChessBase"]
[SourceQuality "1"]
[TimeControl "5400+30"]

1. e4 {[%emt 0:05:32]} e6 {[%emt 0:00:41]} 2. d4 {[%emt 0:00:04]} d5 {[%emt 0:00:03]} 3. Nc3 {[%emt 0:00:31]} Nf6 {[%emt 0:00:05]} 4. Bg5 {[%emt 0:00:43]} dxe4 {[%emt 0:00:07]} 5. Nxe4 {[%emt 0:00:17]} Be7 {[%emt 0:00:02]} 6. Bxf6 {[%emt 0:00:06]} gxf6 {[%emt 0:00:07]} 7. Nf3 {[%emt 0:06:01]} f5 {[%emt 0:00:03]} 8. Nc3 {[%emt 0:08:02]} a6 {[%emt 0:00:01]} 9. Ne5 {[%emt 0:04:16]} Nd7 {[%emt 0:05:58]} 10. Be2 {[%emt 0:02:44]} Nxe5 {[%emt 0:15:18]} 11. dxe5 {[%emt 0:00:02]} Bb4 {[%emt 0:00:17]} 12. Qxd8+ {[%emt 0:02:11]} Kxd8 {[%emt 0:00:04]} 13. O-O-O+ {[%emt 0:00:11]} Ke7 {[%emt 0:00:50]} 14. Rd4 {[%emt 0:10:51]} Bxc3 {[%emt 0:12:48]} 15. bxc3 {[%emt 0:00:05]} f6 {[%emt 0:04:37]} 16. exf6+ {[%emt 0:01:47]} Kxf6 {[%emt 0:00:13]} 17. f4 {[%emt 0:00:21]} Rg8 {[%emt 0:07:50]} 18. g3 {[%emt 0:00:33]} e5 {[%emt 0:04:56]} 19. fxe5+ {[%emt 0:01:45]} Kxe5 {[%emt 0:46:00]} 20. Re1 {[%emt 0:06:59]} Kf6 {[%emt 0:00:00]} 21. Bc4 {[%emt 0:02:20]} Rf8 {[%emt 0:00:00]} 22. Rh4 {[%emt 0:00:34]} Rh8 {[%emt 0:00:00]} 23. Rf4 {[%emt 0:11:31]} Bd7 {[%emt 0:00:00]} 24. Ref1 {[%emt 0:01:44]} Ke5 {[%emt 0:00:00]} 25. Bd3 {[%emt 0:00:31]} Rae8 {[%emt 0:00:00]} 26. Bxf5 {[%emt 0:01:05]} Bxf5 {[%emt 0:00:00]} 27. Rxf5+ {[%emt 0:00:02]} Ke6 {[%emt 0:00:00]} 28. Rf7 {[%emt 0:02:32]} Re7 {[%emt 0:00:00]} 29. R1f6+ {[%emt 0:31:40]} Kd7 {[%emt 0:00:00]} 30. Kd2 {[%emt 0:00:00]} h5 {[%emt 0:00:00]} 31. Rxe7+ {[%emt 0:00:00]} Kxe7 {[%emt 0:00:00]} 32. Rf4 {[%emt 0:00:00]} Rh6 {[%emt 0:00:00]} 33. c4 {[%emt 0:00:00]} Ke6 {[%emt 0:00:00]} 34. Rh4 {[%emt 0:00:00]} Kf5 {[%emt 0:00:00]} 35. g4+ {[%emt 0:00:00]} Kg5 {[%emt 0:00:00]} 36. Rxh5+ {[%emt 0:00:00]} Rxh5 {[%emt 0:00:00]} 37. gxh5 {[%emt 0:00:00]} Kxh5 {[%emt 0:00:00]} 38. Kd3 {[%emt 0:00:00]} Kh4 {[%emt 0:00:00]} 39. Kd4 {[%emt 0:00:00]} Kh3 {[%emt 0:00:00]} 40. Kd5 {[%emt 0:00:00]} Kxh2 {[%emt 0:00:00]} 41. Ke6 {[%emt 0:00:00]} Kg3 {[%emt 0:00:00]} 42. Kd7 {[%emt 0:00:00]} c5 {[%emt 0:00:00]} 43. Kc7 {[%emt 0:00:00]} b5 {[%emt 0:00:00]} 44. Kb6 {[%emt 0:00:00]} bxc4 {[%emt 0:00:00]} 45. Kxc5 {[%emt 0:00:00]} 1-0

[Event "1000GM Winter IM Norm-2 2024"]
[Site "Sunnyvale/"]
[Date "2024.01.04"]
[Round "4.9"]
[White "Stopa, Jacek"]
[Black "Sivakumar, Shaashwath"]
[Result "1/2-1/2"]
[ECO "B51"]
[WhiteElo "2344"]
[BlackElo "2205"]
[Annotator "RC"]
[PlyCount "71"]
[EventDate "2023.12.14"]
[EventType "schev"]
[EventCountry "USA"]
[SourceTitle "playchess.com"]
[Source "ChessBase"]
[SourceQuality "1"]
[TimeControl "5400+30"]

1. e4 {[%emt 0:05:41]} c5 {[%emt 0:00:05]} 2. Nf3 {[%emt 0:00:05]} d6 {[%emt 0:00:02]} 3. Bb5+ {[%emt 0:01:21]} Nd7 {[%emt 0:00:10]} 4. O-O {[%emt 0:01:11]} Ngf6 {[%emt 0:00:27]} 5. Re1 {[%emt 0:00:18]} a6 {[%emt 0:00:03]} 6. Bf1 {[%emt 0:00:26]} b6 {[%emt 0:00:03]} 7. c4 {[%emt 0:02:17]} Bb7 {[%emt 0:00:28]} 8. Nc3 {[%emt 0:00:14]} e6 {[%emt 0:00:33]} 9. b3 {[%emt 0:04:47]} Ne5 {[%emt 0:01:50]} 10. Bb2 {[%emt 0:00:22]} Be7 {[%emt 0:00:14]} 11. Qe2 {[%emt 0:03:35]} O-O {[%emt 0:00:21]} 12. Rad1 {[%emt 0:00:07]} Nfd7 {[%emt 0:22:08]} 13. d4 {[%emt 0:05:18]} Nxf3+ {[%emt 0:02:09]} 14. Qxf3 {[%emt 0:00:02]} Bf6 {[%emt 0:15:46]} 15. d5 {[%emt 0:04:00]} Bd4 {[%emt 0:00:47]} 16. Na4 {[%emt 0:04:56]} Bxb2 {[%emt 0:01:31]} 17. Nxb2 {[%emt 0:00:09]} e5 {[%emt 0:00:18]} 18. a4 {[%emt 0:01:13]} g6 {[%emt 0:07:50]} 19. Qc3 {[%emt 0:01:04]} a5 {[%emt 0:00:19]} 20. g3 {[%emt 0:01:34]} Qg5 {[%emt 0:02:17]} 21. Nd3 {[%emt 0:02:36]} Rae8 {[%emt 0:03:18]} 22. Bg2 {[%emt 0:01:47]} Qh6 {[%emt 0:05:49]} 23. Re2 {[%emt 0:04:15]} Bc8 {[%emt 0:08:16]} 24. Rf1 {[%emt 0:00:55]} f5 {[%emt 0:01:23]} 25. exf5 {[%emt 0:00:24]} gxf5 {[%emt 0:00:32]} 26. Rfe1 {[%emt 0:10:26]} Nf6 {[%emt 0:00:39]} 27. f4 {[%emt 0:00:51]} e4 {[%emt 0:01:00]} 28. Nf2 {[%emt 0:00:11]} Qg6 {[%emt 0:00:11]} 29. Re3 {[%emt 0:01:18]} h5 {[%emt 0:02:57]} 30. Nh3 {[%emt 0:05:36]} Nh7 {[%emt 0:01:18]} 31. Kf1 {[%emt 0:02:03]} Re7 {[%emt 0:01:02]} 32. Bf3 {[%emt 0:01:58]} Rg7 {[%emt 0:01:08]} 33. Bd1 {[%emt 0:00:06]} Qh6 {[%emt 0:00:37]} 34. Ke2 {[%emt 0:02:36]} Kf7 {[%emt 0:03:35]} 35. Kd2 {[%emt 0:00:35]} Rfg8 {[%emt 0:00:26]} 36. Kc2 {[%emt 0:03:04]} 1/2-1/2

[Event "1000GM Winter IM Norm-2 2024"]
[Site "Sunnyvale/"]
[Date "2024.01.05"]
[Round "5.1"]
[White "Zhou, Ruoyu"]
[Black "Zuluaga Mancilla, Cesar"]
[Result "1/2-1/2"]
[ECO "B41"]
[WhiteElo "2112"]
[BlackElo "2251"]
[Annotator "RC"]
[PlyCount "84"]
[EventDate "2023.12.14"]
[EventType "schev"]
[EventCountry "USA"]
[SourceTitle "playchess.com"]
[Source "ChessBase"]
[SourceQuality "1"]
[TimeControl "5400+30"]

1. e4 {[%emt 0:02:12]} c5 {[%emt 0:11:38]} 2. Nf3 {[%emt 0:00:09]} e6 {[%emt 0:00:14]} 3. d4 {[%emt 0:00:16]} cxd4 {[%emt 0:00:10]} 4. Nxd4 {[%emt 0:00:10]} a6 {[%emt 0:00:09]} 5. c4 {[%emt 0:00:16]} Nf6 {[%emt 1:20:49]} 6. Nc3 {[%emt 0:00:16]} Qc7 {[%emt 0:00:08]} 7. a3 {[%emt 0:00:13]} Nxe4 {[%emt 0:02:11]} 8. Nxe4 {[%emt 0:00:41]} Qe5 {[%emt 0:00:04]} 9. Bd3 {[%emt 0:00:39]} Qxd4 {[%emt 0:00:27]} 10. Be3 {[%emt 0:01:56]} Qe5 {[%emt 0:00:56]} 11. O-O {[%emt 1:29:12]} f5 {[%emt 0:04:22]} 12. Nd2 {[%emt 0:15:22]} Nc6 {[%emt 0:03:31]} 13. Re1 {[%emt 0:20:37]} Qf6 {[%emt 0:02:40]} 14. c5 {[%emt 0:06:00]} Be7 {[%emt 0:01:01]} 15. Nc4 {[%emt 0:04:38]} f4 {[%emt 0:01:19]} 16. Bd2 {[%emt 0:01:01]} O-O {[%emt 0:00:17]} 17. b4 {[%emt 0:09:07]} g6 {[%emt 0:07:19]} 18. Re4 {[%emt 0:05:24]} g5 {[%emt 0:00:09]} 19. Re1 {[%emt 0:03:28]} f3 {[%emt 0:01:40]} 20. Qxf3 {[%emt 0:03:24]} Qxf3 {[%emt 0:00:47]} 21. gxf3 {[%emt 0:00:02]} Rxf3 {[%emt 0:00:10]} 22. Be4 {[%emt 0:00:38]} Rf8 {[%emt 0:00:16]} 23. Bxc6 {[%emt 0:03:36]} bxc6 {[%emt 1:01:20]} 24. Bc3 {[%emt 0:19:26]} Bd8 {[%emt 0:03:16]} 25. Rad1 {[%emt 0:03:33]} Rf3 {[%emt 0:04:41]} 26. Re3 {[%emt 0:00:43]} Rf5 {[%emt 0:03:25]} 27. Be5 {[%emt 0:02:28]} a5 {[%emt 0:17:11]} 28. Nd6 {[%emt 0:00:27]} axb4 {[%emt 0:01:36]} 29. Nxf5 {[%emt 0:01:28]} exf5 {[%emt 0:00:03]} 30. axb4 {[%emt 0:00:14]} Kf7 {[%emt 0:01:29]} 31. Rh3 {[%emt 0:01:22]} Kg8 {[%emt 0:00:00]} 32. Re1 {[%emt 0:01:35]} Be7 {[%emt 0:01:00]} 33. Bd4 {[%emt 0:10:50]} Bf8 {[%emt 0:00:00]} 34. Rg3 {[%emt 0:01:29]} h6 {[%emt 0:00:00]} 35. Be5 {[%emt 0:02:01]} Kf7 {[%emt 0:00:00]} 36. Bd6 {[%emt 0:01:04]} f4 {[%emt 0:00:00]} 37. Rd3 {[%emt 0:00:35]} Bg7 {[%emt 0:00:00]} 38. Be5 {[%emt 0:01:40]} Bxe5 {[%emt 0:00:00]} 39. Rxe5 {[%emt 0:00:17]} Ra1+ {[%emt 0:03:30]} 40. Kg2 {[%emt 0:00:51]} Ba6 {[%emt 0:00:00]} 41. Rd2 {[%emt 0:01:54]} Bf1+ {[%emt 0:04:30]} 42. Kf3 {[%emt 0:04:12]} Ra3+ {[%emt 0:00:30]} 1/2-1/2

[Event "1000GM Winter IM Norm-2 2024"]
[Site "Sunnyvale/"]
[Date "2024.01.05"]
[Round "5.2"]
[White "Karthi, Jashith"]
[Black "Hajnal, Zoltan"]
[Result "1/2-1/2"]
[ECO "D15"]
[WhiteElo "2032"]
[BlackElo "2383"]
[Annotator "RC"]
[PlyCount "61"]
[EventDate "2023.12.14"]
[EventType "schev"]
[EventCountry "USA"]
[SourceTitle "playchess.com"]
[Source "ChessBase"]
[SourceQuality "1"]
[TimeControl "5400+30"]

1. d4 {[%emt 0:00:07]} d5 {[%emt 0:00:06]} 2. c4 {[%emt 0:00:23]} c6 {[%emt 0:00:04]} 3. Nf3 {[%emt 0:00:09]} Nf6 {[%emt 0:00:05]} 4. Nc3 {[%emt 0:00:06]} dxc4 {[%emt 0:00:11]} 5. e4 {[%emt 0:00:05]} b5 {[%emt 0:00:05]} 6. Be2 {[%emt 0:00:04]} e6 {[%emt 0:00:57]} 7. a4 {[%emt 0:00:13]} b4 {[%emt 0:03:04]} 8. e5 {[%emt 0:00:04]} bxc3 {[%emt 0:00:09]} 9. exf6 {[%emt 0:00:05]} cxb2 {[%emt 0:00:09]} 10. fxg7 {[%emt 0:00:07]} Bxg7 {[%emt 0:01:11]} 11. Bxb2 {[%emt 0:00:10]} Qa5+ {[%emt 0:01:07]} 12. Qd2 {[%emt 0:01:02]} Qxd2+ {[%emt 0:01:42]} 13. Nxd2 {[%emt 0:02:28]} O-O {[%emt 0:00:30]} 14. Nxc4 {[%emt 0:01:20]} Ba6 {[%emt 0:01:25]} 15. Ne5 {[%emt 0:01:51]} Bxe2 {[%emt 0:03:29]} 16. Kxe2 {[%emt 0:00:10]} Rd8 {[%emt 0:02:42]} 17. Rac1 {[%emt 0:03:01]} Rd5 {[%emt 0:01:14]} 18. Rhd1 {[%emt 0:03:29]} Bxe5 {[%emt 0:05:21]} 19. dxe5 {[%emt 0:00:24]} Rxd1 {[%emt 0:03:31]} 20. Kxd1 {[%emt 0:00:57]} Na6 {[%emt 0:00:04]} 21. Rxc6 {[%emt 0:01:23]} Nb4 {[%emt 0:00:04]} 22. Rd6 {[%emt 0:03:26]} Nd5 {[%emt 0:01:12]} 23. Bd4 {[%emt 0:03:01]} a5 {[%emt 0:01:03]} 24. Bb6 {[%emt 0:28:02]} Nc3+ {[%emt 0:02:10]} 25. Kc2 {[%emt 0:01:40]} Nxa4 {[%emt 0:00:06]} 26. Rd8+ {[%emt 0:00:12]} Rxd8 {[%emt 0:00:05]} 27. Bxd8 {[%emt 0:00:05]} Nc5 {[%emt 0:00:44]} 28. Bxa5 {[%emt 0:00:10]} Kg7 {[%emt 0:00:43]} 29. Bc3 {[%emt 0:01:03]} Kg6 {[%emt 0:00:30]} 30. Bd4 {[%emt 0:00:16]} Nd7 {[%emt 0:01:55]} 31. Kd3 {[%emt 0:01:39]} 1/2-1/2

[Event "1000GM Winter IM Norm-2 2024"]
[Site "Sunnyvale/"]
[Date "2024.01.05"]
[Round "5.3"]
[White "Goktepe, Derin"]
[Black "Rodi, Luis Ernesto"]
[Result "1/2-1/2"]
[ECO "E11"]
[WhiteElo "2187"]
[BlackElo "2196"]
[Annotator "RC"]
[PlyCount "64"]
[EventDate "2023.12.14"]
[EventType "schev"]
[EventCountry "USA"]
[SourceTitle "playchess.com"]
[Source "ChessBase"]
[SourceQuality "1"]
[TimeControl "5400+30"]

1. d4 {[%emt 0:00:02]} d5 {[%emt 0:05:21]} 2. c4 {[%emt 0:00:22]} e6 {[%emt 0:00:06]} 3. Nf3 {[%emt 0:00:28]} Nf6 {[%emt 0:00:07]} 4. g3 {[%emt 0:05:02]} Bb4+ {[%emt 0:00:09]} 5. Bd2 {[%emt 0:01:28]} Be7 {[%emt 0:00:09]} 6. Bg2 {[%emt 0:01:10]} O-O {[%emt 0:00:08]} 7. O-O {[%emt 0:02:19]} Nbd7 {[%emt 0:00:08]} 8. Qc2 {[%emt 0:02:17]} Ne4 {[%emt 0:00:08]} 9. Nc3 {[%emt 0:05:14]} Nxd2 {[%emt 0:01:14]} 10. Nxd2 {[%emt 0:02:09]} c6 {[%emt 0:00:43]} 11. e4 {[%emt 0:16:12]} dxc4 {[%emt 0:10:17]} 12. Nxc4 {[%emt 0:01:14]} Nb6 {[%emt 0:00:14]} 13. Qd3 {[%emt 0:04:59]} Nxc4 {[%emt 0:01:07]} 14. Qxc4 {[%emt 0:00:26]} Qb6 {[%emt 0:00:23]} 15. b3 {[%emt 0:05:13]} Bd7 {[%emt 0:04:32]} 16. Rfd1 {[%emt 0:03:08]} Rac8 {[%emt 0:02:23]} 17. Rac1 {[%emt 0:03:13]} Rfd8 {[%emt 0:01:19]} 18. Na4 {[%emt 0:06:45]} Qb4 {[%emt 0:08:48]} 19. Nc5 {[%emt 0:02:25]} Qxc4 {[%emt 0:01:32]} 20. Rxc4 {[%emt 0:01:03]} Rc7 {[%emt 0:01:59]} 21. f4 {[%emt 0:04:05]} Bc8 {[%emt 0:00:48]} 22. e5 {[%emt 0:04:00]} b6 {[%emt 0:02:27]} 23. Ne4 {[%emt 0:01:18]} c5 {[%emt 0:00:20]} 24. b4 {[%emt 0:07:33]} Ba6 {[%emt 0:09:13]} 25. Rc2 {[%emt 0:00:26]} Bb5 {[%emt 0:01:20]} 26. Rdc1 {[%emt 0:03:20]} Bd3 {[%emt 0:01:12]} 27. Rd2 {[%emt 0:00:39]} Bxe4 {[%emt 0:00:16]} 28. Bxe4 {[%emt 0:00:09]} Rcd7 {[%emt 0:00:16]} 29. bxc5 {[%emt 0:02:08]} Bxc5 {[%emt 0:01:55]} 30. Rcd1 {[%emt 0:03:12]} h6 {[%emt 0:01:24]} 31. Kf2 {[%emt 0:00:58]} Rxd4 {[%emt 0:00:35]} 32. Rxd4 {[%emt 0:00:06]} Rd5 {[%emt 0:00:08]} 1/2-1/2